[Event "*** Titled Tuesday Blitz"]
[Site "Chess.com"]
[Date "2019.12.03"]
[Round "6"]
[White "Micki-taryan"]
[Black "Vuk2000"]
[Result "1-0"]
[WhiteElo "2993"]
[BlackElo "2765"]
[TimeControl "180+2"]
[EndTime "14:20:58 PST"]
[Termination "Micki-taryan won by resignation"]

1. Nf3 {[%clk 0:03:00.8]} 1... Nf6 {[%clk 0:02:59.7]} 2. g3 {[%clk 0:03:01.9]}
2... e6 {[%clk 0:03:00.4]} 3. Bg2 {[%clk 0:03:03.6]} 3... d5 {[%clk 0:03:01.3]}
4. O-O {[%clk 0:03:05.5]} 4... Be7 {[%clk 0:03:01.7]} 5. d3 {[%clk 0:03:07]}
5... O-O {[%clk 0:03:02.8]} 6. Nbd2 {[%clk 0:03:08.9]} 6... b5 {[%clk
0:02:57.4]} 7. e4 {[%clk 0:03:10.8]} 7... c5 {[%clk 0:02:58.6]} 8. Re1 {[%clk
0:03:11.4]} 8... Nc6 {[%clk 0:02:57.6]} 9. a3 {[%clk 0:03:11.7]} 9... Bb7 {[%clk
0:02:55.1]} 10. e5 {[%clk 0:03:12.1]} 10... Nd7 {[%clk 0:02:56.1]} 11. Nf1
{[%clk 0:03:14]} 11... a5 {[%clk 0:02:57.1]} 12. h4 {[%clk 0:03:15.3]} 12... b4
{[%clk 0:02:58.4]} 13. h5 {[%clk 0:03:16.4]} 13... bxa3 {[%clk 0:02:58.2]} 14.
bxa3 {[%clk 0:03:17.5]} 14... c4 {[%clk 0:02:36.5]} 15. d4 {[%clk 0:03:18.2]}
15... Na7 {[%clk 0:02:27]} 16. a4 {[%clk 0:03:17.1]} 16... Bc6 {[%clk
0:02:23.1]} 17. c3 {[%clk 0:03:18]} 17... Nb6 {[%clk 0:02:23.5]} 18. N1h2 {[%clk
0:03:17.5]} 18... Qd7 {[%clk 0:02:22.7]} 19. h6 {[%clk 0:03:18.6]} 19... g6
{[%clk 0:02:23.1]} 20. Bg5 {[%clk 0:03:20.2]} 20... Bxa4 {[%clk 0:02:18.1]} 21.
Qd2 {[%clk 0:03:16.3]} 21... Bb3 {[%clk 0:01:05]} 22. Rxa5 {[%clk 0:03:12.4]}
22... Nc6 {[%clk 0:01:00.9]} 23. Rxa8 {[%clk 0:03:13.2]} 23... Rxa8 {[%clk
0:01:01.3]} 24. Ng4 {[%clk 0:03:14.8]} 24... Ra2 {[%clk 0:00:56.1]} 25. Qf4
{[%clk 0:03:15.8]} 25... Qe8 {[%clk 0:00:40.3]} 26. Bxe7 {[%clk 0:02:39.6]}
26... Qxe7 {[%clk 0:00:38]} 27. Nf6+ {[%clk 0:02:40.4]} 27... Kh8 {[%clk
0:00:30]} 28. Ng5 {[%clk 0:02:41.6]} 28... Nd8 {[%clk 0:00:27.6]} 29. Ngxh7
{[%clk 0:02:37.2]} 29... Na4 {[%clk 0:00:22.2]} 30. Re3 {[%clk 0:02:14.7]} 30...
Rc2 {[%clk 0:00:18.2]} 31. Qf3 {[%clk 0:02:16.2]} 31... Rd2 {[%clk 0:00:17.7]}
32. Ng5 {[%clk 0:02:14.9]} 32... Bd1 {[%clk 0:00:17.5]} 33. Qf4 {[%clk
0:02:16.5]} 33... Bc2 {[%clk 0:00:18.8]} 34. h7 {[%clk 0:02:16.5]} 34... Qf8
{[%clk 0:00:16.7]} 35. Ng4 {[%clk 0:02:12.9]} 35... Qg7 {[%clk 0:00:16.5]} 36.
Nh6 {[%clk 0:02:09.9]} 36... Qxh6 {[%clk 0:00:06.5]} 37. Qf6+ {[%clk 0:02:09.7]}
1-0

[Event "*** Titled Tuesday Blitz"]
[Site "Chess.com"]
[Date "2019.12.03"]
[Round "6"]
[White "Squirlolz"]
[Black "Indianlad"]
[Result "1-0"]
[WhiteElo "2638"]
[BlackElo "2873"]
[TimeControl "180+2"]
[EndTime "14:21:11 PST"]
[Termination "Squirlolz won by resignation"]

1. e4 {[%clk 0:03:01.9]} 1... e5 {[%clk 0:02:59.8]} 2. Nf3 {[%clk 0:03:02.7]}
2... Nc6 {[%clk 0:03:01.2]} 3. Bb5 {[%clk 0:03:04.4]} 3... a6 {[%clk 0:03:01.9]}
4. Ba4 {[%clk 0:03:05.7]} 4... d6 {[%clk 0:03:03.1]} 5. O-O {[%clk 0:03:02.3]}
5... Bd7 {[%clk 0:03:04.5]} 6. c4 {[%clk 0:03:03]} 6... g5 {[%clk 0:03:01.2]} 7.
Bxc6 {[%clk 0:02:50.9]} 7... bxc6 {[%clk 0:03:03.1]} 8. d4 {[%clk 0:02:51]} 8...
g4 {[%clk 0:03:04]} 9. Ne1 {[%clk 0:02:50.2]} 9... exd4 {[%clk 0:03:03.8]} 10.
Qxd4 {[%clk 0:02:49.4]} 10... Qf6 {[%clk 0:03:05.3]} 11. Qd3 {[%clk 0:02:37.3]}
11... Ne7 {[%clk 0:03:01.8]} 12. Nc3 {[%clk 0:02:34]} 12... Ng6 {[%clk
0:03:00.9]} 13. f4 {[%clk 0:02:34.7]} 13... Bg7 {[%clk 0:02:55.5]} 14. Be3
{[%clk 0:02:31.8]} 14... O-O {[%clk 0:02:34.5]} 15. Rd1 {[%clk 0:02:26.9]} 15...
Rfe8 {[%clk 0:02:31.8]} 16. Qe2 {[%clk 0:02:00.9]} 16... h5 {[%clk 0:02:29.9]}
17. Nd3 {[%clk 0:02:00.8]} 17... Qe7 {[%clk 0:02:22.3]} 18. f5 {[%clk
0:01:58.3]} 18... Ne5 {[%clk 0:02:23.5]} 19. Nf4 {[%clk 0:01:55.3]} 19... Qh4
{[%clk 0:02:02.4]} 20. g3 {[%clk 0:01:33.4]} 20... Nf3+ {[%clk 0:02:02.4]} 21.
Qxf3 {[%clk 0:01:30.7]} 21... gxf3 {[%clk 0:01:48.7]} 22. gxh4 {[%clk
0:01:30.7]} 22... Bxc3 {[%clk 0:01:50.5]} 23. bxc3 {[%clk 0:01:29.8]} 23... Rxe4
{[%clk 0:01:52.2]} 24. Rxf3 {[%clk 0:01:19.8]} 24... Bxf5 {[%clk 0:01:51.6]} 25.
Nxh5 {[%clk 0:01:17.7]} 25... Re5 {[%clk 0:01:51.2]} 26. Bd4 {[%clk 0:01:05.4]}
26... Ra5 {[%clk 0:01:50.6]} 27. Rg3+ {[%clk 0:00:37.6]} 27... Kh7 {[%clk
0:01:51.3]} 28. Nf6+ {[%clk 0:00:37.1]} 28... Kh8 {[%clk 0:01:52.6]} 29. Rg5
{[%clk 0:00:18.6]} 29... c5 {[%clk 0:01:50.4]} 30. Rxf5 {[%clk 0:00:13.1]} 30...
Rxa2 {[%clk 0:01:52.1]} 31. Rh5+ {[%clk 0:00:12]} 31... Kg7 {[%clk 0:01:53.4]}
32. Rg5+ {[%clk 0:00:13.9]} 32... Kh6 {[%clk 0:01:54.6]} 33. Ng4+ {[%clk
0:00:13.4]} 33... Kh7 {[%clk 0:01:56.3]} 34. Nf6+ {[%clk 0:00:11.9]} 34... Kh6
{[%clk 0:01:57.7]} 35. Ng4+ {[%clk 0:00:11.8]} 35... Kh7 {[%clk 0:01:59.1]} 36.
Rg7+ {[%clk 0:00:13.2]} 36... Kh8 {[%clk 0:02:00.4]} 37. Bf6 {[%clk 0:00:12.4]}
37... Rg8 {[%clk 0:02:00.1]} 38. Rxg8+ {[%clk 0:00:11.6]} 38... Kxg8 {[%clk
0:02:01.8]} 39. Re1 {[%clk 0:00:11.5]} 39... Kh7 {[%clk 0:02:03.1]} 40. h5
{[%clk 0:00:12.7]} 1-0

[Event "*** Titled Tuesday Blitz"]
[Site "Chess.com"]
[Date "2019.12.03"]
[Round "6"]
[White "Supernotar"]
[Black "TigrVShlyape"]
[Result "1/2-1/2"]
[WhiteElo "2641"]
[BlackElo "2840"]
[TimeControl "180+2"]
[EndTime "14:21:20 PST"]
[Termination "Game drawn by repetition"]

1. d4 {[%clk 0:03:01.9]} 1... Nf6 {[%clk 0:02:59.4]} 2. c4 {[%clk 0:03:00.8]}
2... g6 {[%clk 0:03:00.9]} 3. Nc3 {[%clk 0:03:01.1]} 3... d5 {[%clk 0:03:01.7]}
4. cxd5 {[%clk 0:03:01.5]} 4... Nxd5 {[%clk 0:03:03.1]} 5. e4 {[%clk 0:03:00.8]}
5... Nxc3 {[%clk 0:03:04.2]} 6. bxc3 {[%clk 0:03:00.5]} 6... Bg7 {[%clk
0:03:05.8]} 7. Nf3 {[%clk 0:03:01.4]} 7... c5 {[%clk 0:03:06.7]} 8. Be3 {[%clk
0:03:01.9]} 8... Qa5 {[%clk 0:03:06]} 9. Qd2 {[%clk 0:03:02.7]} 9... cxd4 {[%clk
0:02:53.9]} 10. cxd4 {[%clk 0:03:02.8]} 10... Nc6 {[%clk 0:02:55]} 11. Rc1
{[%clk 0:02:55.5]} 11... O-O {[%clk 0:02:51.3]} 12. d5 {[%clk 0:02:48.4]} 12...
Qxd2+ {[%clk 0:02:49.3]} 13. Kxd2 {[%clk 0:02:47.8]} 13... Rd8 {[%clk
0:02:47.5]} 14. Ke1 {[%clk 0:02:46.4]} 14... Ne5 {[%clk 0:02:43.2]} 15. Nxe5
{[%clk 0:02:46.2]} 15... Bxe5 {[%clk 0:02:43.8]} 16. f4 {[%clk 0:02:45.9]} 16...
Bd6 {[%clk 0:02:43.3]} 17. Kf2 {[%clk 0:02:46.5]} 17... e5 {[%clk 0:02:39.6]}
18. g3 {[%clk 0:02:42.4]} 18... Bd7 {[%clk 0:02:39.8]} 19. Bd3 {[%clk
0:02:33.1]} 19... f6 {[%clk 0:02:37.1]} 20. Bc5 {[%clk 0:02:25.2]} 20... Bxc5+
{[%clk 0:02:37.6]} 21. Rxc5 {[%clk 0:02:25]} 21... Rdc8 {[%clk 0:02:38.8]} 22.
Rhc1 {[%clk 0:02:25.2]} 22... Rxc5 {[%clk 0:02:39.6]} 23. Rxc5 {[%clk
0:02:25.6]} 23... Rc8 {[%clk 0:02:38.9]} 24. Rxc8+ {[%clk 0:02:26.1]} 24... Bxc8
{[%clk 0:02:40.1]} 25. Ke3 {[%clk 0:02:24]} 25... Kf8 {[%clk 0:02:40.1]} 26.
fxe5 {[%clk 0:02:02.2]} 26... fxe5 {[%clk 0:02:40.8]} 27. Kd2 {[%clk 0:01:38.5]}
27... Ke7 {[%clk 0:02:41.2]} 28. Kc3 {[%clk 0:01:38.5]} 28... Kd6 {[%clk
0:02:42.4]} 29. Kb4 {[%clk 0:01:35.6]} 29... g5 {[%clk 0:02:37.7]} 30. a4 {[%clk
0:01:26.7]} 30... Bg4 {[%clk 0:02:34.2]} 31. a5 {[%clk 0:01:22.8]} 31... Bf3
{[%clk 0:02:34.1]} 32. Kb5 {[%clk 0:01:12.2]} 32... h6 {[%clk 0:02:33.6]} 33.
Kb4 {[%clk 0:01:12.4]} 33... Bg2 {[%clk 0:02:30]} 34. Kb5 {[%clk 0:01:11.4]}
34... Bh3 {[%clk 0:02:30.4]} 35. Kb4 {[%clk 0:01:09]} 35... Bd7 {[%clk
0:02:30.1]} 36. Bb5 {[%clk 0:01:04.2]} 36... Bc8 {[%clk 0:02:29]} 37. Bd3 {[%clk
0:01:03.5]} 37... Kc7 {[%clk 0:02:30.2]} 38. Kc5 {[%clk 0:01:02.6]} 38... b6+
{[%clk 0:02:30.5]} 39. axb6+ {[%clk 0:01:03.7]} 39... axb6+ {[%clk 0:02:31.8]}
40. Kb5 {[%clk 0:00:53.5]} 40... Bg4 {[%clk 0:02:30.8]} 41. Kb4 {[%clk 0:00:39]}
41... Bf3 {[%clk 0:02:29.5]} 42. Kb5 {[%clk 0:00:38.1]} 42... Bd1 {[%clk
0:02:30]} 43. Kb4 {[%clk 0:00:37.7]} 43... Bg4 {[%clk 0:02:28.4]} 44. Kb5 {[%clk
0:00:38.4]} 44... Bd7+ {[%clk 0:02:29.3]} 45. Kb4 {[%clk 0:00:39.3]} 45... Kd6
{[%clk 0:02:30.6]} 46. Bb5 {[%clk 0:00:39.4]} 46... Bh3 {[%clk 0:02:31.4]} 47.
Bd3 {[%clk 0:00:40.4]} 47... Bg4 {[%clk 0:02:27.9]} 48. Kb5 {[%clk 0:00:40.4]}
48... Kc7 {[%clk 0:02:29.1]} 49. Kb4 {[%clk 0:00:41.8]} 49... Bh5 {[%clk
0:02:25.4]} 50. Kb5 {[%clk 0:00:41.1]} 50... Bg6 {[%clk 0:02:26.1]} 51. Kb4
{[%clk 0:00:41.6]} 51... Be8 {[%clk 0:02:25]} 52. Bb5 {[%clk 0:00:41.8]} 52...
Bg6 {[%clk 0:02:25.4]} 53. Bd3 {[%clk 0:00:43]} 53... Be8 {[%clk 0:02:25.8]} 54.
Bb5 {[%clk 0:00:43.6]} 54... Bg6 {[%clk 0:02:26.7]} 55. Bd3 {[%clk 0:00:44.5]}
1/2-1/2

[Event "*** Titled Tuesday Blitz"]
[Site "Chess.com"]
[Date "2019.12.03"]
[Round "6"]
[White "wild_cat99"]
[Black "mitrabhaa"]
[Result "1/2-1/2"]
[WhiteElo "2413"]
[BlackElo "2638"]
[TimeControl "180+2"]
[EndTime "14:21:43 PST"]
[Termination "Game drawn by repetition"]

1. Nf3 {[%clk 0:03:01.9]} 1... c6 {[%clk 0:03:00.8]} 2. g3 {[%clk 0:03:01.8]}
2... d5 {[%clk 0:03:01.9]} 3. Bg2 {[%clk 0:03:03.7]} 3... Bg4 {[%clk 0:03:03.4]}
4. O-O {[%clk 0:03:04]} 4... Nd7 {[%clk 0:03:05]} 5. d4 {[%clk 0:03:03.9]} 5...
Ngf6 {[%clk 0:03:04.6]} 6. Nbd2 {[%clk 0:03:01.8]} 6... e6 {[%clk 0:03:05.6]} 7.
c4 {[%clk 0:02:59.5]} 7... Be7 {[%clk 0:03:06.2]} 8. Qc2 {[%clk 0:02:56]} 8...
O-O {[%clk 0:03:07.4]} 9. e4 {[%clk 0:02:45.2]} 9... dxe4 {[%clk 0:03:06.9]} 10.
Nxe4 {[%clk 0:02:47.1]} 10... Nxe4 {[%clk 0:03:04.2]} 11. Qxe4 {[%clk 0:02:49]}
11... Bf5 {[%clk 0:03:04.9]} 12. Qe2 {[%clk 0:02:49.4]} 12... Nf6 {[%clk
0:03:01.7]} 13. Rd1 {[%clk 0:02:48.8]} 13... Qb6 {[%clk 0:03:01.1]} 14. b3
{[%clk 0:02:49]} 14... Rfd8 {[%clk 0:03:01.1]} 15. Bb2 {[%clk 0:02:49.8]} 15...
a5 {[%clk 0:03:02.4]} 16. Nh4 {[%clk 0:02:48.6]} 16... Bg4 {[%clk 0:03:02.7]}
17. f3 {[%clk 0:02:49.3]} 17... Bh5 {[%clk 0:03:03.7]} 18. g4 {[%clk 0:02:50.6]}
18... Ne8 {[%clk 0:03:02.6]} 19. Nf5 {[%clk 0:02:00.7]} 19... Bf6 {[%clk
0:02:54.7]} 20. Ne3 {[%clk 0:01:42.4]} 20... Bg6 {[%clk 0:02:53.7]} 21. c5
{[%clk 0:01:38.5]} 21... Qa6 {[%clk 0:02:49.9]} 22. Nc4 {[%clk 0:01:39.2]} 22...
Nc7 {[%clk 0:02:48.6]} 23. f4 {[%clk 0:01:36.8]} 23... Nb5 {[%clk 0:02:47.7]}
24. Qf2 {[%clk 0:01:26]} 24... a4 {[%clk 0:02:37.3]} 25. g5 {[%clk 0:01:22.9]}
25... Be7 {[%clk 0:02:30.4]} 26. h4 {[%clk 0:01:21.1]} 26... a3 {[%clk
0:02:24.6]} 27. Bc1 {[%clk 0:01:20.8]} 27... Bxc5 {[%clk 0:02:25.9]} 28. Be3
{[%clk 0:01:19.6]} 28... Bb4 {[%clk 0:02:24.3]} 29. Bf3 {[%clk 0:01:19.2]} 29...
Nc3 {[%clk 0:02:19.5]} 30. Rdc1 {[%clk 0:01:17.7]} 30... Nd5 {[%clk 0:02:19]}
31. Bd2 {[%clk 0:01:17.6]} 31... Bxd2 {[%clk 0:02:14]} 32. Qxd2 {[%clk
0:01:19.5]} 32... Bf5 {[%clk 0:02:08.6]} 33. Bxd5 {[%clk 0:01:18.8]} 33... Rxd5
{[%clk 0:02:06.3]} 34. Ne3 {[%clk 0:01:18.4]} 34... Rd7 {[%clk 0:02:06]} 35.
Nxf5 {[%clk 0:01:18.7]} 35... exf5 {[%clk 0:02:06.9]} 36. Rc5 {[%clk 0:01:19.8]}
36... g6 {[%clk 0:02:04.4]} 37. Re5 {[%clk 0:01:14.8]} 37... Rad8 {[%clk
0:02:04.5]} 38. Qe3 {[%clk 0:01:16.1]} 38... Qa8 {[%clk 0:01:55.3]} 39. Rd1
{[%clk 0:01:10]} 39... h5 {[%clk 0:01:50.1]} 40. gxh6 {[%clk 0:01:09.5]} 40...
Kh7 {[%clk 0:01:50.8]} 41. h5 {[%clk 0:01:09.6]} 41... Qb8 {[%clk 0:01:44.6]}
42. hxg6+ {[%clk 0:01:06.3]} 42... fxg6 {[%clk 0:01:37.8]} 43. Re7+ {[%clk
0:01:07.4]} 43... Rxe7 {[%clk 0:01:39]} 44. Qxe7+ {[%clk 0:01:08.9]} 44... Kxh6
{[%clk 0:01:40.1]} 45. Qg5+ {[%clk 0:01:08.7]} 45... Kg7 {[%clk 0:01:40.8]} 46.
Qe7+ {[%clk 0:01:08.6]} 46... Kg8 {[%clk 0:01:42.3]} 47. Qe6+ {[%clk 0:01:08.9]}
47... Kg7 {[%clk 0:01:43.3]} 48. Qe7+ {[%clk 0:01:08.9]} 48... Kg8 {[%clk
0:01:44.1]} 49. Qe6+ {[%clk 0:01:08.9]} 49... Kg7 {[%clk 0:01:45.2]} 50. Qe7+
{[%clk 0:01:09.3]} 1/2-1/2

[Event "*** Titled Tuesday Blitz"]
[Site "Chess.com"]
[Date "2019.12.03"]
[Round "6"]
[White "ElGasanov"]
[Black "AryanTari"]
[Result "0-1"]
[WhiteElo "2677"]
[BlackElo "2850"]
[TimeControl "180+2"]
[EndTime "14:21:44 PST"]
[Termination "AryanTari won by resignation"]

1. Nf3 {[%clk 0:03:01.9]} 1... d5 {[%clk 0:03:00.5]} 2. d4 {[%clk 0:03:00]} 2...
Nf6 {[%clk 0:03:01.3]} 3. c4 {[%clk 0:03:00.2]} 3... dxc4 {[%clk 0:03:02]} 4. e3
{[%clk 0:03:00.3]} 4... b5 {[%clk 0:03:03.2]} 5. b3 {[%clk 0:02:54.5]} 5... cxb3
{[%clk 0:03:01.2]} 6. Bxb5+ {[%clk 0:02:53.3]} 6... c6 {[%clk 0:03:02.2]} 7. Bc4
{[%clk 0:02:49.9]} 7... bxa2 {[%clk 0:03:00.2]} 8. Nc3 {[%clk 0:02:48.4]} 8...
e6 {[%clk 0:02:57.1]} 9. O-O {[%clk 0:02:49]} 9... Be7 {[%clk 0:02:57.8]} 10. e4
{[%clk 0:02:47.9]} 10... O-O {[%clk 0:02:55.7]} 11. Rxa2 {[%clk 0:02:48]} 11...
a5 {[%clk 0:02:55.2]} 12. e5 {[%clk 0:02:30.2]} 12... Nd5 {[%clk 0:02:56.1]} 13.
Ne4 {[%clk 0:02:30.3]} 13... Ba6 {[%clk 0:02:50.7]} 14. Qe2 {[%clk 0:02:29.1]}
14... Bxc4 {[%clk 0:02:40.5]} 15. Qxc4 {[%clk 0:02:29.7]} 15... Qb6 {[%clk
0:02:42.1]} 16. Bg5 {[%clk 0:02:26.9]} 16... Qb5 {[%clk 0:02:28.6]} 17. Qc1
{[%clk 0:02:08.7]} 17... Nd7 {[%clk 0:01:38.3]} 18. Rb2 {[%clk 0:01:37.6]} 18...
Ba3 {[%clk 0:01:38.6]} 19. Rxb5 {[%clk 0:01:22.6]} 19... Bxc1 {[%clk 0:01:39.4]}
20. Rb7 {[%clk 0:01:20.1]} 20... Bxg5 {[%clk 0:01:40.5]} 21. Nfxg5 {[%clk
0:01:18.4]} 21... N7b6 {[%clk 0:01:18.8]} 22. Nd6 {[%clk 0:01:12.8]} 22... a4
{[%clk 0:01:01.5]} 23. Ngxf7 {[%clk 0:00:59.4]} 23... h6 {[%clk 0:01:01]} 24. g4
{[%clk 0:00:49]} 24... a3 {[%clk 0:01:01.7]} 25. g5 {[%clk 0:00:48.5]} 25...
Rfb8 {[%clk 0:00:35.4]} 26. Rxb8+ {[%clk 0:00:33.5]} 26... Rxb8 {[%clk
0:00:37.3]} 27. gxh6 {[%clk 0:00:35.1]} 27... a2 {[%clk 0:00:38.8]} 28. Ra1
{[%clk 0:00:32.5]} 28... Nc3 {[%clk 0:00:39.9]} 29. Ng5 {[%clk 0:00:28]} 29...
gxh6 {[%clk 0:00:37.3]} 30. Nxe6 {[%clk 0:00:28.5]} 30... Nbd5 {[%clk
0:00:33.9]} 0-1

[Event "*** Titled Tuesday Blitz"]
[Site "Chess.com"]
[Date "2019.12.03"]
[Round "6"]
[White "MateusViageiro"]
[Black "SmirnovAlexandrA"]
[Result "1-0"]
[WhiteElo "2197"]
[BlackElo "2263"]
[TimeControl "180+2"]
[EndTime "14:21:44 PST"]
[Termination "MateusViageiro won by resignation"]

1. e4 {[%clk 0:03:01.9]} 1... c5 {[%clk 0:02:59.5]} 2. Nf3 {[%clk 0:03:01.9]}
2... d6 {[%clk 0:02:58.1]} 3. d4 {[%clk 0:03:00.3]} 3... cxd4 {[%clk 0:03:00]}
4. Nxd4 {[%clk 0:03:00.7]} 4... Nf6 {[%clk 0:03:01.4]} 5. Nc3 {[%clk 0:03:00.4]}
5... a6 {[%clk 0:02:58.7]} 6. Be3 {[%clk 0:02:57.5]} 6... e5 {[%clk 0:02:59]} 7.
Nb3 {[%clk 0:02:57.7]} 7... Be6 {[%clk 0:02:59]} 8. f3 {[%clk 0:02:58]} 8... Be7
{[%clk 0:02:59.8]} 9. Qd2 {[%clk 0:02:58.1]} 9... O-O {[%clk 0:02:58]} 10. O-O-O
{[%clk 0:02:57.8]} 10... Nbd7 {[%clk 0:02:59.1]} 11. g4 {[%clk 0:02:57.8]} 11...
b5 {[%clk 0:02:58.9]} 12. g5 {[%clk 0:02:55.9]} 12... b4 {[%clk 0:03:00.1]} 13.
Nd5 {[%clk 0:02:47.2]} 13... Nxd5 {[%clk 0:02:57.5]} 14. exd5 {[%clk 0:02:46.2]}
14... Bf5 {[%clk 0:02:58.1]} 15. h4 {[%clk 0:02:44.6]} 15... a5 {[%clk
0:02:57.8]} 16. Bd3 {[%clk 0:02:35.6]} 16... Bxd3 {[%clk 0:02:56.3]} 17. Qxd3
{[%clk 0:02:35.3]} 17... a4 {[%clk 0:02:53.1]} 18. Nd2 {[%clk 0:02:34.7]} 18...
Qc7 {[%clk 0:02:49.3]} 19. Kb1 {[%clk 0:02:34.5]} 19... Nc5 {[%clk 0:02:43.9]}
20. Bxc5 {[%clk 0:02:32.3]} 20... Qxc5 {[%clk 0:02:45.8]} 21. Ne4 {[%clk
0:02:33.1]} 21... Qb6 {[%clk 0:02:44.2]} 22. h5 {[%clk 0:02:25.7]} 22... b3
{[%clk 0:02:44.8]} 23. cxb3 {[%clk 0:02:24.6]} 23... axb3 {[%clk 0:02:43.6]} 24.
a3 {[%clk 0:02:25.3]} 24... Rfc8 {[%clk 0:02:39.6]} 25. Rc1 {[%clk 0:02:24.2]}
25... Rxc1+ {[%clk 0:02:22.4]} 26. Rxc1 {[%clk 0:02:21.1]} 26... Rb8 {[%clk
0:02:23.5]} 27. g6 {[%clk 0:02:03.1]} 27... fxg6 {[%clk 0:02:22.2]} 28. hxg6
{[%clk 0:02:03.6]} 28... hxg6 {[%clk 0:02:16.6]} 29. Nc3 {[%clk 0:02:03.1]}
29... Kf7 {[%clk 0:02:13.2]} 30. f4 {[%clk 0:01:50.9]} 30... Qd4 {[%clk
0:02:12.6]} 31. Qh3 {[%clk 0:01:50.6]} 31... exf4 {[%clk 0:01:40.9]} 32. Qe6+
{[%clk 0:01:50.9]} 32... Kf8 {[%clk 0:01:41.9]} 33. Rh1 {[%clk 0:01:41.7]} 33...
Bh4 {[%clk 0:01:22.7]} 34. Qxd6+ {[%clk 0:01:24.5]} 34... Kf7 {[%clk 0:01:22.8]}
35. Qxb8 {[%clk 0:01:21.1]} 35... Bf6 {[%clk 0:01:13.6]} 36. Qxb3 {[%clk
0:01:20.7]} 36... Qd3+ {[%clk 0:01:10.4]} 37. Ka2 {[%clk 0:01:19.5]} 37... Bxc3
{[%clk 0:01:10.1]} 38. bxc3 {[%clk 0:01:14]} 38... Qd2+ {[%clk 0:01:08.2]} 39.
Ka1 {[%clk 0:01:13.1]} 39... f3 {[%clk 0:01:07.2]} 40. Rd1 {[%clk 0:01:11.3]}
40... Qe2 {[%clk 0:01:06.4]} 41. d6+ {[%clk 0:01:11.8]} 41... Kf6 {[%clk
0:01:08.3]} 42. d7 {[%clk 0:01:12.5]} 1-0

[Event "*** Titled Tuesday Blitz"]
[Site "Chess.com"]
[Date "2019.12.03"]
[Round "6"]
[White "resha1988"]
[Black "enriquetejedor"]
[Result "1-0"]
[WhiteElo "2744"]
[BlackElo "2463"]
[TimeControl "180+2"]
[EndTime "14:21:48 PST"]
[Termination "resha1988 won by checkmate"]

1. d4 {[%clk 0:03:01.7]} 1... Nf6 {[%clk 0:02:53.7]} 2. Nc3 {[%clk 0:03:01.4]}
2... e6 {[%clk 0:02:54.2]} 3. e4 {[%clk 0:03:01.6]} 3... d5 {[%clk 0:02:54.1]}
4. Bg5 {[%clk 0:03:01.3]} 4... Bb4 {[%clk 0:02:52.8]} 5. exd5 {[%clk 0:03:00.2]}
5... Qxd5 {[%clk 0:02:51.9]} 6. Nf3 {[%clk 0:02:53]} 6... Ne4 {[%clk 0:02:51.3]}
7. Bd2 {[%clk 0:02:54]} 7... Nxd2 {[%clk 0:02:44.7]} 8. Qxd2 {[%clk 0:02:55.9]}
8... Qa5 {[%clk 0:02:30]} 9. Bd3 {[%clk 0:02:51.7]} 9... c5 {[%clk 0:02:23.5]}
10. dxc5 {[%clk 0:02:24.8]} 10... Nd7 {[%clk 0:02:14]} 11. O-O {[%clk
0:02:20.5]} 11... O-O {[%clk 0:02:11.6]} 12. Rfe1 {[%clk 0:01:51.3]} 12... Nxc5
{[%clk 0:02:04.2]} 13. Re5 {[%clk 0:01:50.7]} 13... Qc7 {[%clk 0:01:38.1]} 14.
Bxh7+ {[%clk 0:00:53.9]} 14... Kxh7 {[%clk 0:01:36.1]} 15. Rh5+ {[%clk
0:00:55.4]} 15... Kg8 {[%clk 0:01:35.9]} 16. Nb5 {[%clk 0:00:56.1]} 16... Qa5
{[%clk 0:01:02.7]} 17. c3 {[%clk 0:00:45.5]} 17... Nb3 {[%clk 0:00:49.4]} 18.
Qf4 {[%clk 0:00:18]} 18... Nxa1 {[%clk 0:00:37.7]} 19. Ng5 {[%clk 0:00:18.4]}
19... g6 {[%clk 0:00:20.1]} 20. Qf6 {[%clk 0:00:12.2]} 20... gxh5 {[%clk
0:00:03.3]} 21. Qh6 {[%clk 0:00:13.1]} 21... Rd8 {[%clk 0:00:02.6]} 22. Qh7+
{[%clk 0:00:13.3]} 22... Kf8 {[%clk 0:00:04.2]} 23. Qxf7# {[%clk 0:00:14.8]} 1-0

[Event "*** Titled Tuesday Blitz"]
[Site "Chess.com"]
[Date "2019.12.03"]
[Round "6"]
[White "DanielNaroditsky"]
[Black "HarutyunianTigranK"]
[Result "1-0"]
[WhiteElo "2996"]
[BlackElo "2767"]
[TimeControl "180+2"]
[EndTime "14:21:58 PST"]
[Termination "DanielNaroditsky won on time"]

1. Nf3 {[%clk 0:03:01.9]} 1... d5 {[%clk 0:02:59.8]} 2. g3 {[%clk 0:03:02.8]}
2... Nc6 {[%clk 0:03:00.6]} 3. d4 {[%clk 0:03:02.5]} 3... Bg4 {[%clk 0:02:59.1]}
4. Bg2 {[%clk 0:03:03.4]} 4... Qd7 {[%clk 0:02:59.7]} 5. h3 {[%clk 0:03:04.3]}
5... Bf5 {[%clk 0:02:57.5]} 6. c4 {[%clk 0:02:57.9]} 6... e6 {[%clk 0:02:57.3]}
7. Nc3 {[%clk 0:02:57.8]} 7... O-O-O {[%clk 0:02:57.2]} 8. cxd5 {[%clk
0:02:57.4]} 8... exd5 {[%clk 0:02:57.8]} 9. Bf4 {[%clk 0:02:57.7]} 9... f6
{[%clk 0:02:52]} 10. g4 {[%clk 0:02:48.2]} 10... Be4 {[%clk 0:02:49.1]} 11. Rc1
{[%clk 0:02:43.3]} 11... g5 {[%clk 0:02:49.4]} 12. Bg3 {[%clk 0:02:43.9]} 12...
a6 {[%clk 0:02:33.2]} 13. e3 {[%clk 0:02:22.6]} 13... h5 {[%clk 0:02:31.5]} 14.
Nxe4 {[%clk 0:02:21.4]} 14... dxe4 {[%clk 0:02:31.1]} 15. Nd2 {[%clk 0:02:23.1]}
15... Bb4 {[%clk 0:02:21.5]} 16. Bxe4 {[%clk 0:02:21.1]} 16... Nge7 {[%clk
0:02:04.4]} 17. a3 {[%clk 0:01:24.6]} 17... Bxd2+ {[%clk 0:02:03.7]} 18. Kxd2
{[%clk 0:01:07.2]} 18... hxg4 {[%clk 0:01:24.5]} 19. hxg4 {[%clk 0:00:47.9]}
19... Rxh1 {[%clk 0:01:24.8]} 20. Bxh1 {[%clk 0:00:41.2]} 20... Kb8 {[%clk
0:01:02.7]} 21. Ke1 {[%clk 0:00:36.7]} 21... Ka8 {[%clk 0:01:02.5]} 22. Be4
{[%clk 0:00:35]} 22... Qe6 {[%clk 0:00:36.6]} 23. Qf3 {[%clk 0:00:36.3]} 23...
Nxd4 {[%clk 0:00:27.9]} 24. Bxb7+ {[%clk 0:00:33.9]} 24... Ka7 {[%clk
0:00:28.7]} 25. Qe4 {[%clk 0:00:35.4]} 25... Qb6 {[%clk 0:00:08.2]} 26. Rxc7
{[%clk 0:00:31.2]} 26... Qxb2 {[%clk 0:00:03.4]} 27. Bd5+ {[%clk 0:00:28]} 27...
Kb6 {[%clk 0:00:04.6]} 28. Rb7+ {[%clk 0:00:29.2]} 1-0